fUST/lending_fUST_20241229
["ID","MTS","AMOUNT","RATE_DAILY","PERIOD"]
[347050198,1735483853372,-500.0,0.00010326,2]
[347050200,1735483853381,-583.14646681,0.00010326,2]
[347050202,1735483853390,-509.33975634,0.00010326,2]
[347050204,1735483853399,-500.0,0.00010326,2]
[347050206,1735483853409,-500.0,0.00010326,2]
[347050208,1735483853418,-500.0,0.00010326,2]
[347050210,1735483853427,-500.0,0.00010326,2]
[347050212,1735483853437,-500.0,0.00010326,2]
[347050214,1735483853446,-500.0,0.00010326,2]
[347050216,1735483853456,-869.51,0.00010326,2]
[347050218,1735483853465,-500.0,0.00010326,2]
[347050220,1735483853474,-424.63441901,0.00010326,2]
[347050500,1735484047481,500.0,0.00020845,120]
[347050505,1735484195345,256.69,0.00025,120]
[347050507,1735484297399,3825.1302187,8.27e-05,2]
[347050508,1735484307637,800.0,0.00025,120]
[347050529,1735484546896,24900.0,8.204e-05,2]
[347050530,1735484607133,207.94883949,9e-05,2]
[347050533,1735484665061,500.0,0.00020906,120]
[347050534,1735484692327,443.0,0.00025,120]
[347050539,1735484895805,5946.83,9.012e-05,2]
[347050617,1735485032930,-300.0,9.189e-05,2]
[347050619,1735485032941,-327.32240896,9.189e-05,2]
[347050622,1735485032954,-172.67759104,9.189e-05,2]
[347050623,1735485032963,-99.39403264,9.189e-05,2]
[347050626,1735485032975,-201.20564541,9.189e-05,2]
[347050628,1735485032984,-500.0,9.189e-05,2]
[347050630,1735485032993,-500.0,9.189e-05,2]
[347050632,1735485033002,-500.0,9.189e-05,2]
[347050633,1735485033012,-500.0,9.189e-05,2]
[347050635,1735485033022,-500.0,9.189e-05,2]
[347050637,1735485033032,-500.0,9.189e-05,2]
[347050639,1735485033042,-500.0,9.189e-05,2]
[347050642,1735485033051,-500.0,9.189e-05,2]
[347050643,1735485033062,-500.0,9.189e-05,2]
[347050645,1735485033072,-500.0,9.189e-05,2]
[347050647,1735485033082,-500.0,9.189e-05,2]
[347050649,1735485033092,-500.0,9.189e-05,2]
[347050651,1735485033102,-159.24711833,9.189e-05,2]
[347050653,1735485033112,-500.0,9.189e-05,2]
[347050655,1735485033123,-500.0,9.189e-05,2]
[347050657,1735485033133,-531.32161896,9.189e-05,2]
[347050659,1735485033143,-500.0,9.189e-05,2]
[347050661,1735485033154,-500.0,9.189e-05,2]
[347050663,1735485033164,-500.0,9.189e-05,2]
[347050664,1735485033174,-500.0,9.189e-05,2]
[347050666,1735485033184,-500.0,9.189e-05,2]
[347050668,1735485033193,-500.0,9.189e-05,2]
[347050669,1735485033203,-500.0,9.189e-05,2]
[347050671,1735485033213,-500.0,9.189e-05,2]
[347050674,1735485033223,-500.0,9.189e-05,2]
[347050676,1735485033234,-605.91,9.191e-05,2]
[347050678,1735485033243,-500.0,9.191e-05,2]
[347050680,1735485033254,-500.0,9.191e-05,2]
[347050681,1735485033264,-267.76504273,9.191e-05,2]
[347050684,1735485033273,-2121.42,9.191e-05,2]
[347050686,1735485033283,-256.25908599,9.192e-05,2]
[347050688,1735485033293,-246.32099333,9.192e-05,2]
[347050690,1735485033303,-1059.67,9.192e-05,2]
[347050692,1735485033313,-500.0,9.192e-05,2]
[347050694,1735485033322,-500.0,9.192e-05,2]
[347050696,1735485033331,-500.0,9.192e-05,2]
[347050698,1735485033341,-500.0,9.192e-05,2]
[347050700,1735485033350,-500.0,9.192e-05,2]
[347050702,1735485033360,-2563.51,9.192e-05,2]
[347050704,1735485033370,-500.0,9.192e-05,2]
[347050705,1735485033379,-500.0,9.192e-05,2]
[347050706,1735485033388,-500.0,9.192e-05,2]
[347050707,1735485033398,-1657.25,9.192e-05,2]
[347050708,1735485033408,-307.85536857,9.193e-05,2]
[347050709,1735485033418,-500.0,9.193e-05,2]
[347050710,1735485033427,-500.0,9.193e-05,2]
[347050711,1735485033436,-500.0,9.193e-05,2]
[347050712,1735485033447,-500.0,9.193e-05,2]
[347050713,1735485033457,-500.0,9.193e-05,2]
[347050714,1735485033466,-500.0,9.193e-05,2]
[347050715,1735485033476,-504.97260899,9.193e-05,2]
[347050716,1735485033486,-473.86606133,9.193e-05,2]
[347050717,1735485033495,-500.0,9.193e-05,2]
[347050718,1735485033505,-716.16,9.193e-05,2]
[347050719,1735485033515,-636.11193652,9.193e-05,2]
[347050720,1735485033525,-500.0,9.193e-05,2]
[347050721,1735485033534,-504.71921326,9.193e-05,2]
[347050722,1735485033544,-500.0,9.193e-05,2]
[347050723,1735485033554,-362.7520065,9.193e-05,2]
[347050724,1735485033564,-500.0,9.193e-05,2]
[347050725,1735485033574,-213.63873377,9.193e-05,2]
[347050726,1735485033583,-500.0,9.193e-05,2]
[347050727,1735485033593,-517.5600228,9.193e-05,2]
[347050728,1735485033603,-500.0,9.193e-05,2]
[347050729,1735485033612,-307.47656864,9.193e-05,2]
[347050731,1735485033622,-500.0,9.193e-05,2]
[347050733,1735485033632,-500.0,9.193e-05,2]
[347050735,1735485033642,-533.13856186,9.193e-05,2]
[347050737,1735485033651,-500.0,9.193e-05,2]
[347050739,1735485033660,-500.0,9.193e-05,2]
[347050741,1735485033669,-502.5982317,9.193e-05,2]
[347050743,1735485033679,-555.56,9.193e-05,2]
[347050745,1735485033688,-500.0,9.193e-05,2]
[347050747,1735485033698,-500.0,9.193e-05,2]
[347050749,1735485033707,-500.0,9.193e-05,2]
[347050751,1735485033716,-503.19767124,9.193e-05,2]
[347050753,1735485033725,-500.0,9.193e-05,2]
[347050755,1735485033734,-500.0,9.193e-05,2]
[347050757,1735485033744,-500.0,9.193e-05,2]
[347050759,1735485033753,-513.21765516,9.193e-05,2]
[347050761,1735485033763,-500.0,9.193e-05,2]
[347050763,1735485033772,-500.0,9.193e-05,2]
[347050765,1735485033783,-504.03083687,9.193e-05,2]
[347050767,1735485033795,-500.0,9.193e-05,2]
[347050769,1735485033805,-500.0,9.193e-05,2]
[347050771,1735485033815,-500.0,9.193e-05,2]
[347050773,1735485033824,-500.0,9.193e-05,2]
[347050775,1735485033834,-104.94501806,9.193e-05,2]
[347051251,1735485038636,-500.0,9.189e-05,2]
[347051253,1735485038646,-500.0,9.189e-05,2]
[347051255,1735485038656,-176.05426245,9.189e-05,2]
[347051257,1735485038665,-500.0,9.189e-05,2]
[347051259,1735485038675,-500.0,9.189e-05,2]
[347051261,1735485038685,-500.0,9.189e-05,2]
[347051263,1735485038695,-500.0,9.189e-05,2]
[347051265,1735485038704,-500.0,9.189e-05,2]
[347051267,1735485038713,-500.0,9.189e-05,2]
[347051269,1735485038723,-500.0,9.189e-05,2]
[347051271,1735485038732,-500.0,9.189e-05,2]
[347051273,1735485038742,-500.0,9.189e-05,2]
[347051275,1735485038751,-500.0,9.189e-05,2]
[347051277,1735485038761,-500.0,9.189e-05,2]
[347051279,1735485038770,-500.0,9.189e-05,2]
[347051281,1735485038780,-500.0,9.189e-05,2]
[347051283,1735485038792,-500.0,9.189e-05,2]
[347051285,1735485038803,-500.0,9.189e-05,2]
[347051287,1735485038812,-500.0,9.189e-05,2]
[347051289,1735485038822,-500.0,9.189e-05,2]
[347051291,1735485038832,-500.0,9.189e-05,2]
[347051294,1735485038842,-500.0,9.189e-05,2]
[347051297,1735485038851,-500.0,9.189e-05,2]
[347051300,1735485038860,-500.0,9.189e-05,2]
[347051303,1735485038870,-500.0,9.189e-05,2]
[347051306,1735485038881,-500.0,9.189e-05,2]
[347051309,1735485038890,-500.0,9.189e-05,2]
[347051311,1735485038900,-500.0,9.189e-05,2]
[347051313,1735485038910,-500.0,9.189e-05,2]
[347051315,1735485038919,-500.0,9.189e-05,2]
[347051317,1735485038928,-500.0,9.189e-05,2]
[347051319,1735485038938,-518.78473612,9.189e-05,2]
[347051321,1735485038947,-500.0,9.189e-05,2]
[347051323,1735485038957,-407.54109177,9.189e-05,2]
[347051325,1735485038967,-500.0,9.189e-05,2]
[347051327,1735485038976,-500.0,9.189e-05,2]
[347051329,1735485038986,-500.0,9.189e-05,2]
[347051331,1735485038995,-340.91366939,9.189e-05,2]
[347051333,1735485039005,-500.0,9.189e-05,2]
[347051335,1735485039015,-500.0,9.189e-05,2]
[347051337,1735485039024,-500.0,9.189e-05,2]
[347051339,1735485039034,-500.0,9.189e-05,2]
[347051341,1735485039043,-500.0,9.189e-05,2]
[347051343,1735485039053,-395.05498194,9.193e-05,2]
[347051345,1735485039062,-500.0,9.193e-05,2]
[347051347,1735485039071,-500.0,9.193e-05,2]
[347051349,1735485039080,-500.0,9.193e-05,2]
[347051351,1735485039088,-579.83,9.193e-05,2]
[347051352,1735485039097,-500.0,9.193e-05,2]
[347051354,1735485039107,-500.22858821,9.193e-05,2]
[347051357,1735485039116,-500.0,9.193e-05,2]
[347051358,1735485039126,-500.0,9.193e-05,2]
[347051360,1735485039134,-500.30782346,9.193e-05,2]
[347051362,1735485039144,-500.0,9.193e-05,2]
[347051364,1735485039153,-500.0,9.193e-05,2]
[347051366,1735485039163,-500.0,9.193e-05,2]
[347051368,1735485039172,-501.10710923,9.193e-05,2]
[347051370,1735485039181,-502.05394083,9.193e-05,2]
[347051372,1735485039190,-500.0,9.193e-05,2]
[347051374,1735485039200,-500.0,9.193e-05,2]
[347051376,1735485039209,-500.0,9.193e-05,2]
[347051378,1735485039218,-500.0,9.193e-05,2]
[347051380,1735485039228,-502.8451094,9.193e-05,2]
[347051383,1735485039238,-500.0,9.193e-05,2]
[347051384,1735485039247,-500.0,9.193e-05,2]
[347051386,1735485039257,-750.61,9.193e-05,2]
[347051388,1735485039266,-500.0,9.193e-05,2]
[347051390,1735485039276,-500.0,9.193e-05,2]
[347051392,1735485039285,-511.9,9.193e-05,2]
[347051394,1735485039295,-510.01249055,9.193e-05,2]
[347051396,1735485039304,-500.0,9.193e-05,2]
[347051398,1735485039313,-500.0,9.193e-05,2]
[347051400,1735485039323,-408.49104663,9.193e-05,2]
[347051402,1735485039332,-500.0,9.193e-05,2]
[347051404,1735485039341,-528.50794753,9.193e-05,2]
[347051406,1735485039350,-501.86125928,9.193e-05,2]
[347051408,1735485039360,-500.0,9.193e-05,2]
[347051410,1735485039369,-500.0,9.193e-05,2]
[347051412,1735485039378,-500.0,9.193e-05,2]
[347051413,1735485039387,-501.03237106,9.193e-05,2]
[347051414,1735485039396,-500.0,9.193e-05,2]
[347051415,1735485039406,-500.0,9.193e-05,2]
[347051416,1735485039415,-505.64329999,9.193e-05,2]
[347051417,1735485039424,-500.0,9.193e-05,2]
[347051418,1735485039434,-500.0,9.193e-05,2]
[347051419,1735485039444,-500.0,9.193e-05,2]
[347051420,1735485039453,-500.0,9.193e-05,2]
[347051421,1735485039463,-500.0,9.193e-05,2]
[347051422,1735485039472,-646.6444104,9.193e-05,2]
[347051423,1735485039481,-500.0,9.193e-05,2]
[347051424,1735485039491,-500.0,9.193e-05,2]
[347051425,1735485039500,-500.0,9.193e-05,2]
[347051426,1735485039510,-500.0,9.193e-05,2]
[347051427,1735485039520,-500.69036101,9.193e-05,2]
[347051428,1735485039529,-500.0,9.193e-05,2]
[347051429,1735485039538,-515.79,9.193e-05,2]
[347051430,1735485039549,-503.72393131,9.193e-05,2]
[347051431,1735485039559,-510.83,9.193e-05,2]
[347051432,1735485039570,-500.0,9.193e-05,2]
[347051433,1735485039581,-1035.32,9.193e-05,2]
[347051434,1735485039591,-500.0,9.193e-05,2]
[347051445,1735485039682,-500.0,9.193e-05,2]
[347051447,1735485039693,-500.0,9.193e-05,2]
[347051449,1735485039703,-500.0,9.193e-05,2]
[347051451,1735485039713,-538.00359675,9.193e-05,2]
[347051453,1735485039723,-375.02016524,9.193e-05,2]
[347051455,1735485039733,-500.0,9.193e-05,2]
[347051457,1735485039743,-500.0,9.193e-05,2]
[347051459,1735485039753,-585.02,9.193e-05,2]
[347051461,1735485039763,-500.0,9.193e-05,2]
[347051463,1735485039772,-502.83048935,9.193e-05,2]
[347051465,1735485039782,-500.0,9.193e-05,2]
[347051466,1735485039794,-500.0,9.193e-05,2]
[347051468,1735485039804,-500.0,9.193e-05,2]
[347051471,1735485039813,-500.0,9.193e-05,2]
[347051472,1735485039823,-500.0,9.193e-05,2]
[347051475,1735485039834,-500.0,9.193e-05,2]
[347051476,1735485039844,-500.0,9.193e-05,2]
[347051478,1735485039854,-500.0,9.193e-05,2]
[347051480,1735485039864,-500.0,9.193e-05,2]
[347051482,1735485039873,-404.95498211,9.193e-05,2]
[347051484,1735485039883,-359.12635623,9.193e-05,2]
[347051486,1735485039893,-500.0,9.193e-05,2]
[347051489,1735485039903,-500.0,9.193e-05,2]
[347051490,1735485039914,-500.0,9.193e-05,2]
[347051492,1735485039924,-500.0,9.193e-05,2]
[347051494,1735485039933,-500.0,9.193e-05,2]
[347051496,1735485039944,-500.0,9.193e-05,2]
[347051498,1735485039953,-500.0,9.193e-05,2]
[347051500,1735485039962,-500.0,9.193e-05,2]
[347051502,1735485039971,-500.0,9.193e-05,2]
[347051504,1735485039980,-892.36,9.193e-05,2]
[347051506,1735485039990,-500.0,9.193e-05,2]
[347051508,1735485039999,-500.0,9.193e-05,2]
[347051510,1735485040009,-500.0,9.193e-05,2]
[347051512,1735485040018,-500.0,9.193e-05,2]
[347051514,1735485040027,-500.0,9.193e-05,2]
[347051516,1735485040036,-1510.05,9.193e-05,2]
[347051518,1735485040046,-500.0,9.193e-05,2]
[347051520,1735485040055,-609.84902604,9.193e-05,2]
[347051522,1735485040065,-500.0,9.193e-05,2]
[347051524,1735485040074,-500.0,9.193e-05,2]
[347051526,1735485040084,-500.0,9.193e-05,2]
[347051528,1735485040093,-500.0,9.193e-05,2]
[347051530,1735485040102,-500.0,9.193e-05,2]
[347051532,1735485040111,-500.0,9.193e-05,2]
[347051534,1735485040121,-504.14910242,9.193e-05,2]
[347051536,1735485040130,-500.0,9.193e-05,2]
[347051538,1735485040139,-500.0,9.193e-05,2]
[347051540,1735485040148,-500.0,9.193e-05,2]
[347051544,1735485040158,-502.08,9.193e-05,2]
[347051548,1735485040167,-500.0,9.193e-05,2]
[347051550,1735485040177,-545.95,9.193e-05,2]
[347051552,1735485040187,-500.0,9.193e-05,2]
[347051554,1735485040200,-500.0,9.193e-05,2]
[347051556,1735485040209,-694.38,9.193e-05,2]
[347051558,1735485040219,-500.0,9.193e-05,2]
[347051560,1735485040228,-500.0,9.193e-05,2]
[347051562,1735485040237,-500.0,9.193e-05,2]
[347051564,1735485040246,-500.0,9.193e-05,2]
[347051566,1735485040255,-924.15,9.193e-05,2]
[347051568,1735485040265,-500.0,9.193e-05,2]
[347051570,1735485040275,-500.0,9.193e-05,2]
[347051572,1735485040284,-500.0,9.193e-05,2]
[347051575,1735485040294,-500.0,9.193e-05,2]
[347051576,1735485040303,-500.0,9.193e-05,2]
[347051579,1735485040313,-500.0,9.193e-05,2]
[347051581,1735485040322,-1115.65,9.193e-05,2]
[347051582,1735485040331,-504.26613379,9.193e-05,2]
[347051584,1735485040342,-500.0,9.193e-05,2]
[347051587,1735485040351,-500.0,9.193e-05,2]
[347051589,1735485040361,-500.0,9.193e-05,2]
[347051591,1735485040370,-500.0,9.193e-05,2]
[347051593,1735485040380,-500.0,9.193e-05,2]
[347051595,1735485040390,-1196.59,9.193e-05,2]
[347051597,1735485040399,-500.0,9.193e-05,2]
[347051599,1735485040409,-500.0,9.193e-05,2]
[347051600,1735485040419,-500.0,9.193e-05,2]
[347051603,1735485040429,-500.0,9.193e-05,2]
[347051604,1735485040440,-939.67,9.193e-05,2]
[347051606,1735485040451,-500.0,9.193e-05,2]
[347051609,1735485040461,-500.0,9.193e-05,2]
[347051610,1735485040471,-500.0,9.193e-05,2]
[347051612,1735485040481,-500.0,9.193e-05,2]
[347051614,1735485040491,-500.0,9.193e-05,2]
[347051616,1735485040500,-297.85768113,9.193e-05,2]
[347051617,1735485040511,-500.0,9.193e-05,2]
[347051618,1735485040520,-280.76598859,9.193e-05,2]
[347051619,1735485040530,-500.0,9.193e-05,2]
[347051620,1735485040540,-500.0,9.193e-05,2]
[347051621,1735485040550,-500.0,9.193e-05,2]
[347051622,1735485040559,-500.0,9.193e-05,2]
[347051623,1735485040569,-500.0,9.193e-05,2]
[347051624,1735485040579,-500.0,9.193e-05,2]
[347051625,1735485040588,-500.0,9.193e-05,2]
[347051626,1735485040598,-424.98947537,9.193e-05,2]
[347051627,1735485040608,-500.0,9.193e-05,2]
[347051628,1735485040618,-500.0,9.193e-05,2]
[347051629,1735485040628,-500.0,9.193e-05,2]
[347051630,1735485040638,-500.0,9.193e-05,2]
[347051631,1735485040648,-500.0,9.193e-05,2]
[347051632,1735485040658,-522.4,9.193e-05,2]
[347051633,1735485040667,-500.0,9.194e-05,2]
[347051634,1735485040677,-500.0,9.194e-05,2]
[347051635,1735485040688,-500.0,9.194e-05,2]
[347051636,1735485040702,-336.96997329,9.194e-05,2]
[347051637,1735485040711,-500.0,9.194e-05,2]
[347051638,1735485040721,-500.0,9.194e-05,2]
[347051639,1735485040730,-500.0,9.194e-05,2]
[347051640,1735485040740,-500.0,9.194e-05,2]
[347051641,1735485040749,-500.0,9.194e-05,2]
[347051642,1735485040760,-500.0,9.194e-05,2]
[347051643,1735485040769,-500.0,9.194e-05,2]
[347051644,1735485040779,-500.0,9.194e-05,2]
[347051645,1735485040790,-500.0,9.194e-05,2]
[347051646,1735485040801,-500.0,9.194e-05,2]
[347051647,1735485040811,-500.0,9.194e-05,2]
[347051648,1735485040821,-500.0,9.194e-05,2]
[347051649,1735485040831,-500.0,9.194e-05,2]
[347051650,1735485040840,-500.0,9.194e-05,2]
[347051651,1735485040850,-500.0,9.194e-05,2]
[347051652,1735485040860,-500.0,9.194e-05,2]
[347051653,1735485040871,-500.0,9.194e-05,2]
[347051654,1735485040881,-500.0,9.194e-05,2]
[347051655,1735485040891,-500.0,9.194e-05,2]
[347051656,1735485040901,-500.0,9.194e-05,2]
[347051657,1735485040910,-500.0,9.194e-05,2]
[347051658,1735485040920,-506.12473125,9.194e-05,2]
[347051659,1735485040930,-500.0,9.194e-05,2]
[347051660,1735485040943,-500.0,9.194e-05,2]
[347051661,1735485040952,-500.0,9.194e-05,2]
[347051662,1735485040963,-500.0,9.194e-05,2]
[347051663,1735485040972,-500.0,9.194e-05,2]
[347051664,1735485040982,-500.0,9.194e-05,2]
[347051665,1735485040991,-841.62,9.194e-05,2]
[347051666,1735485041000,-431.86112655,9.194e-05,2]
[347051667,1735485041009,-500.0,9.194e-05,2]
[347051668,1735485041019,-500.0,9.194e-05,2]
[347051669,1735485041029,-500.0,9.194e-05,2]
[347051670,1735485041039,-618.98,9.194e-05,2]
[347051672,1735485041049,-500.0,9.194e-05,2]
[347051674,1735485041058,-518.11,9.194e-05,2]
[347051676,1735485041068,-505.26559631,9.194e-05,2]
[347051678,1735485041077,-565.69,9.194e-05,2]
[347051680,1735485041086,-522.9,9.194e-05,2]
[347051682,1735485041095,-500.0,9.194e-05,2]
[347051684,1735485041105,-500.0,9.194e-05,2]
[347051685,1735485041115,-500.0,9.194e-05,2]
[347051688,1735485041124,-500.0,9.194e-05,2]
[347051689,1735485041134,-500.0,9.194e-05,2]
[347051691,1735485041143,-500.0,9.194e-05,2]
[347051693,1735485041153,-3018.37,9.194e-05,2]
[347051696,1735485041163,-2892.61,9.194e-05,2]
[347051698,1735485041172,-500.0,9.194e-05,2]
[347051699,1735485041182,-500.0,9.194e-05,2]
[347051708,1735485041194,-500.0,9.194e-05,2]
[347051710,1735485041269,-584.87,9.194e-05,2]
[347051712,1735485041281,-500.0,9.194e-05,2]
[347051715,1735485041290,-500.0,9.194e-05,2]
[347051717,1735485041300,-500.0,9.194e-05,2]
[347051719,1735485041309,-500.0,9.194e-05,2]
[347051721,1735485041318,-953.05,9.194e-05,2]
[347051723,1735485041328,-500.0,9.194e-05,2]
[347051725,1735485041337,-500.0,9.194e-05,2]
[347051726,1735485041346,-500.0,9.194e-05,2]
[347051729,1735485041356,-500.0,9.194e-05,2]
[347051731,1735485041366,-500.0,9.194e-05,2]
[347051732,1735485041375,-500.0,9.194e-05,2]
[347051733,1735485041385,-500.0,9.194e-05,2]
[347051734,1735485041394,-500.0,9.194e-05,2]
[347051735,1735485041404,-967.91,9.194e-05,2]
[347051736,1735485041414,-500.0,9.194e-05,2]
[347051737,1735485041423,-500.0,9.194e-05,2]
[347051738,1735485041432,-500.0,9.194e-05,2]
[347051739,1735485041443,-500.0,9.194e-05,2]
[347051740,1735485041453,-500.0,9.194e-05,2]
[347051741,1735485041462,-848.38,9.195e-05,2]
[347051742,1735485041472,-509.20395076,9.195e-05,2]
[347051743,1735485041482,-1073.58,9.195e-05,2]
[347051744,1735485041491,-500.0,9.195e-05,2]
[347051745,1735485041500,-705.45,9.195e-05,2]
[347051746,1735485041510,-643.54,9.195e-05,2]
[347051747,1735485041520,-500.0,9.195e-05,2]
[347051748,1735485041529,-500.0,9.195e-05,2]
[347051749,1735485041538,-500.0,9.195e-05,2]
[347051750,1735485041547,-500.0,9.195e-05,2]
[347051751,1735485041557,-500.0,9.195e-05,2]
[347051752,1735485041566,-507.71483277,9.195e-05,2]
[347051754,1735485041575,-500.0,9.195e-05,2]
[347051755,1735485041585,-500.0,9.195e-05,2]
[347051757,1735485041594,-22014.43,9.195e-05,2]
[347051758,1735485041603,-500.0,9.195e-05,2]
[347051760,1735485041613,-708.85,9.195e-05,2]
[347051762,1735485041622,-497.1989833,9.195e-05,2]
[347051764,1735485041632,-500.0,9.195e-05,2]
[347051766,1735485041642,-500.0,9.196e-05,2]
[347051768,1735485041651,-500.0,9.196e-05,2]
[347051770,1735485041660,-500.0,9.196e-05,2]
[347051772,1735485041671,-500.0,9.196e-05,2]
[347051774,1735485041680,-500.0,9.196e-05,2]
[347051776,1735485041691,-500.0,9.196e-05,2]
[347051778,1735485041700,-500.0,9.196e-05,2]
[347051780,1735485041710,-500.0,9.196e-05,2]
[347051782,1735485041719,-500.0,9.196e-05,2]
[347051784,1735485041728,-500.43516081,9.196e-05,2]
[347051786,1735485041738,-500.0,9.196e-05,2]
[347051788,1735485041747,-504.28619686,9.196e-05,2]
[347051790,1735485041757,-500.0,9.196e-05,2]
[347051792,1735485041766,-500.0,9.196e-05,2]
[347051794,1735485041776,-501.42159556,9.196e-05,2]
[347051796,1735485041787,-500.0,9.196e-05,2]
[347051798,1735485041799,-500.0,9.196e-05,2]
[347051800,1735485041809,-500.0,9.196e-05,2]
[347051802,1735485041818,-500.0,9.196e-05,2]
[347051804,1735485041828,-500.0,9.196e-05,2]
[347051806,1735485041839,-500.0,9.196e-05,2]
[347051808,1735485041848,-500.0,9.196e-05,2]
[347051810,1735485041858,-507.38214763,9.196e-05,2]
[347051812,1735485041866,-362.92528909,9.196e-05,2]
[347051813,1735485041876,-500.0,9.196e-05,2]
[347051816,1735485041886,-500.0,9.196e-05,2]
[347051818,1735485041895,-504.47746663,9.196e-05,2]
[347051819,1735485041905,-500.0,9.196e-05,2]
[347051821,1735485041914,-334.14173577,9.196e-05,2]
[347051824,1735485041924,-507.87255704,9.196e-05,2]
[347051826,1735485041934,-500.0,9.196e-05,2]
[347051828,1735485041944,-500.0,9.196e-05,2]
[347051829,1735485041954,-500.0,9.196e-05,2]
[347051831,1735485041964,-500.0,9.196e-05,2]
[347051834,1735485041974,-500.0,9.196e-05,2]
[347051836,1735485041983,-500.0,9.196e-05,2]
[347051837,1735485041993,-506.58450175,9.196e-05,2]
[347051840,1735485042002,-501.90287019,9.196e-05,2]
[347051841,1735485042012,-504.0302554,9.196e-05,2]
[347051843,1735485042021,-502.69920343,9.196e-05,2]
[347051845,1735485042031,-502.16525915,9.196e-05,2]
[347051847,1735485042040,-502.80990595,9.196e-05,2]
[347051849,1735485042050,-547.29662441,9.196e-05,2]
[347051851,1735485042060,-500.0,9.196e-05,2]
[347051853,1735485042069,-500.0,9.196e-05,2]
[347051855,1735485042079,-575.5787479,9.196e-05,2]
[347051857,1735485042088,-322.02940684,9.196e-05,2]
[347051859,1735485042097,-506.13517466,9.196e-05,2]
[347051861,1735485042107,-500.0,9.196e-05,2]
[347051863,1735485042116,-279.36674867,9.196e-05,2]
[347051865,1735485042126,-502.53959061,9.196e-05,2]
[347051867,1735485042135,-504.1489081,9.196e-05,2]
[347051869,1735485042145,-503.84483523,9.196e-05,2]
[347051871,1735485042154,-500.0,9.196e-05,2]
[347051873,1735485042164,-500.0,9.196e-05,2]
[347051875,1735485042173,-507.2353062,9.196e-05,2]
[347051878,1735485042183,-503.59880027,9.196e-05,2]
[347051879,1735485042193,-500.0,9.196e-05,2]
[347051881,1735485042203,-511.59884193,9.196e-05,2]
[347051883,1735485042213,-500.0,9.196e-05,2]
[347051886,1735485042222,-505.73142454,9.196e-05,2]
[347051888,1735485042231,-505.07230638,9.196e-05,2]
[347051890,1735485042241,-501.75859607,9.196e-05,2]
[347051892,1735485042250,-508.06145039,9.196e-05,2]
[347051893,1735485042260,-505.77323593,9.196e-05,2]
[347051895,1735485042270,-504.05782668,9.196e-05,2]
[347051897,1735485042279,-505.58864142,9.196e-05,2]
[347051900,1735485042289,-500.92420875,9.196e-05,2]
[347051902,1735485042298,-505.67765727,9.196e-05,2]
[347051904,1735485042307,-503.77502135,9.196e-05,2]
[347051906,1735485042317,-568.12362289,9.196e-05,2]
[347051908,1735485042326,-500.0,9.196e-05,2]
[347051910,1735485042336,-500.0,9.196e-05,2]
[347051911,1735485042345,-283.22455287,9.196e-05,2]
[347051913,1735485042355,-500.0,9.196e-05,2]
[347051915,1735485042365,-500.0,9.196e-05,2]
[347051917,1735485042375,-500.0,9.196e-05,2]
[347051920,1735485042386,-535.03,9.196e-05,2]
[347051921,1735485042397,-500.0,9.196e-05,2]
[347051924,1735485042407,-500.0,9.196e-05,2]
[347051925,1735485042417,-500.0,9.196e-05,2]
[347051927,1735485042427,-501.13544204,9.196e-05,2]
[347051930,1735485042437,-500.0,9.196e-05,2]
[347051932,1735485042448,-500.0,9.196e-05,2]
[347051934,1735485042458,-188.0,9.196e-05,2]
[347051936,1735485042468,-500.0,9.196e-05,2]
[347051938,1735485042478,-500.0,9.196e-05,2]
[347051940,1735485042487,-500.0,9.196e-05,2]
[347051942,1735485042497,-500.0,9.196e-05,2]
[347051944,1735485042506,-165.04508724,9.196e-05,2]
[347051946,1735485042515,-500.0,9.196e-05,2]